Cogmind - Beta 13 @@@ ROGUE MODE // 2024.03.10 @ 02:42:50 Player: rCartos Result: Destroyed by Y-54 Guardian with Gatling Laser Performance ------------- Evolutions (3) 1500 Regions Visited (6) 1200 Robots Destroyed (12) 60 Value Destroyed (218) 218 Prototype IDs (23) 460 Alien Tech Used (0) 0 Bonus (300) 300 TOTAL SCORE: 3738 Bonus ------- Aligned with FarCom 300 Cogmind --------- Core Integrity 0/700 Matter 29/300 Energy 58/100 System Corruption 1% Temperature Cool (12) Movement Core (50) Location -7/Factory Parts ------- > --- POWER (3) -------- (None) > --- PROPULSION (5) --- (None) > --- UTILITY (3) ------ (None) > --- WEAPON (2) ------- (None) > --- INVENTORY (5) ---- Cloak of Protection Peak State ------------ > --- POWER ------------ (None) > --- PROPULSION ------- Armored Huge Wheel > --- UTILITY ---------- Improved Trap Scanner Cloaking Device Cloak of Protection > --- WEAPON ----------- (None) > --- INVENTORY -------- (None) [Rating: 26] Favorites ----------- Power Light Ion Engine Engine Light Ion Engine Power Core Light Nuclear Core Propulsion Wheel Leg Aluminum Leg Wheel Wheel Flight Unit Flight Unit Utility High-capacity Battery Device Cloak of Protection Storage High-capacity Battery Weapon Light Assault Rifle Energy Gun Medium Laser Ballistic Gun Light Assault Rifle Launcher Heavy Rocket Launcher Slashing Weapon Chainsword Special Melee Weapon Improved Datajack Build | -11 -10 -10 -10 -9 -8 -7 ------- Run | Yrd Mat Min Exi Min Mat Fac Slots Evolved 6 | . . . . . 4 2 Power 2 | . . . . . 1 1 Propulsion 3 | . . . . . 2 1 Utility 1 | . . . . . 1 . Weapon . | . . . . . . . Parts Attached 36 | 6 . . 2 2 12 14 Power 7 | 1 . . . . 5 1 Engine 3 | 1 . . . . 2 . Core 4 | . . . . . 3 1 Reactor . | . . . . . . . Propulsion 12 | 2 . . . 2 3 5 Treads . | . . . . . . . Leg 3 | . . . . . 2 1 Wheel 3 | 2 . . . . . 1 Hover . | . . . . . . . Flight 6 | . . . . 2 1 3 Utility 9 | 1 . . 2 . . 6 Device 7 | . . . 1 . . 6 Storage 2 | 1 . . 1 . . . Processor . | . . . . . . . Hackware . | . . . . . . . Protection . | . . . . . . . Artifact . | . . . . . . . Weapon 8 | 2 . . . . 4 2 Energy Gun 3 | 1 . . . . 2 . Energy Cannon . | . . . . . . . Ballistic Gun 2 | 1 . . . . 1 . Ballistic Cannon . | . . . . . . . Launcher 1 | . . . . . . 1 Special Weapon . | . . . . . . . Impact Weapon . | . . . . . . . Slashing Weapon 1 | . . . . . . 1 Piercing Weapon . | . . . . . . . Special Melee Weapon 1 | . . . . . 1 . Unidentified Prototypes 1 | . . . 1 . . . Parts Lost 16 | . . . . 1 7 8 Power 5 | . . . . 1 3 1 Propulsion 6 | . . . . . 3 3 Utility 2 | . . . . . . 2 Weapon 3 | . . . . . 1 2 Highest Loss Streak 7 | . . . . 1 7 5 To Critical Strikes . | . . . . . . . Average Slot Usage (%) 67 | . 85 85 94 90 21 14 Engine 9 | . 14 14 14 9 3 . Wheel 19 | . 28 28 28 21 . 4 Flight 1 | . . . . 6 9 1 Device 3 | . . . 2 14 3 6 Storage 12 | . 14 14 20 12 . . Energy Gun 9 | . 14 14 14 12 . . Ballistic Gun 9 | . 14 14 14 12 1 . Naked Turns 86 | . . . . . 30 56 Heaviest Build 18 | 11 11 11 18 18 11 11 Greatest Support 28 | 26 26 26 26 26 10 28 Greatest Overweight (x) 2 | . . . . . 2 2 Average Overweight (x) . | . . . . . . . Largest Inventory Capacity 8 | 8 8 8 8 5 5 5 Average Capacity 6 | 6 8 8 6 5 5 5 Most Carried 6 | 5 2 3 6 5 5 4 Average Carried 3 | 2 2 2 4 4 3 1 Final Capacity 8 | 8 8 8 5 5 5 5 Final Carried 5 | 2 2 3 4 5 2 1 Class Distribution -------------------- 100% | Mutant Dominant Class ---------------- Mutant | -10/Materials Mutant | -10/Mines Mutant | -10/Exiles Mutant | -9/Mines Mutant | -8/Materials Mutant | -7/Factory Resources | -11 -10 -10 -10 -9 -8 -7 ----------- Run | Yrd Mat Min Exi Min Mat Fac Matter Collected 239 | 186 . 53 . . . . Remotely . | . . . . . . . Salvage Created 176 | 22 . 53 . 23 46 32 Parts 22 | 3 . 7 . 4 6 2 Haulers Intercepted . | . . . . . . . Recyclers Shooed . | . . . . . . . Parts Field Recycled . | . . . . . . . Retrieved Matter . | . . . . . . . Parts Self-Destructed . | . . . . . . . Prevented . | . . . . . . . Kills | -11 -10 -10 -10 -9 -8 -7 ------- Run | Yrd Mat Min Exi Min Mat Fac Combat Hostiles Destroyed 11 | . . 3 . 2 3 3 Guns 8 | . . 3 . 2 3 . AOE 3 | . . . . . . 3 Classes Destroyed 2 | 1 . 1 . . . . Tunneler 1 | 1 . . . . . . Swarmer 11 | . . 3 . 2 3 3 Best Kill Streak 3 | 1 . 3 . 2 3 3 Combat Bots Only 3 | . . 3 . 2 3 3 Max Kills in Single Turn 3 | 1 . 1 . 1 1 3 Gunslinging . | . . . . . . . Exploded 3 | . . . . . . 3 Melee . | . . . . . . . Uniques/NPCs Destroyed . | . . . . . . . Combat | -11 -10 -10 -10 -9 -8 -7 -------- Run | Yrd Mat Min Exi Min Mat Fac Hostile Shots Fired 289 | . 3 17 . 37 99 133 Missed 104 | . 1 4 . 12 36 51 Damage Taken 2752 | . 17 103 . 265 920 1447 Core 1236 | . . 21 . 39 467 709 Absorbed by Shields . | . . . . . . . Core Remaining (%) 63 | 100 . . . 76 15 . Volleys Fired 24 | 6 . 6 . 3 8 1 Largest 2 | 2 . 2 . 2 1 1 Hottest 70 | 70 . 70 . 70 20 39 Shots Fired 39 | 12 . 12 . 6 8 1 Gun 38 | 12 . 12 . 6 8 . Cannon . | . . . . . . . Launcher 1 | . . . . . . 1 Special . | . . . . . . . Kinetic 23 | 6 . 6 . 3 8 . Thermal 15 | 6 . 6 . 3 . . Explosive 1 | . . . . . . 1 Electromagnetic . | . . . . . . . Robot Hit Streak 8 | 8 . 4 . 2 3 . Robot Miss Streak 2 | 1 . 2 . 1 2 1 Penetration Max . | . . . . . . . Secondary Targets 2 | . . 1 . 1 . . Max Gunslinging Chain 1 | . . 1 . 1 . . Shots Hit Robots 29 | 9 . 7 . 4 6 3 Core Hits 19 | 3 . 4 . 2 5 5 Critical Kills . | . . . . . . . Critical Parts Destroyed . | . . . . . . . Critical Strikes 1 | . . . . . . 1 Sever 1 | . . . . . . 1 Melee Attacks 7 | . . . . . 2 5 Impact . | . . . . . . . Slashing 5 | . . . . . . 5 Piercing . | . . . . . . . Sneak Attacks . | . . . . . . . Combat Hostiles . | . . . . . . . Follow-up Attacks . | . . . . . . . Damage Inflicted 766 | 88 . 76 . 43 47 512 Guns 250 | 88 . 76 . 43 43 . Cannons . | . . . . . . . Explosions 403 | . . . . . . 403 Melee 109 | . . . . . . 109 Ramming 4 | . . . . . 4 . Kinetic 136 | 37 . 39 . 17 43 . Thermal 358 | 51 . 37 . 26 . 244 Explosive 159 | . . . . . . 159 Electromagnetic . | . . . . . . . Impact . | . . . . . . . Slashing 109 | . . . . . . 109 Piercing . | . . . . . . . Highest Corruption 1 | . . . . . . 1 Average Corruption 1 | . . . . . . 1 Corruption Purged . | . . . . . . . Corruption Blocked . | . . . . . . . Effects 2 | . . . . . . 2 Matter Fused 1 | . . . . . . 1 Data Loss (major) 1 | . . . . . . 1 Overload Shots . | . . . . . . . Overflow Damage 69 | . . . . . . 69 Projectiles . | . . . . . . . Explosions 69 | . . . . . . 69 Melee . | . . . . . . . Knockbacks . | . . . . . . . Impact . | . . . . . . . Kinetic . | . . . . . . . Secondary . | . . . . . . . Self-Inflicted Damage 216 | . . . . . 2 214 Shots 3 | . . . . . . 3 Rammed 4 | . . . . . 4 . Targets Rammed 4 | . . . . . 4 . Kicked . | . . . . . . . Crushed . | . . . . . . . Highest Temperature 100 | 60 . 100 . 70 4 9 Average Temperature 37 | 33 . 45 . 34 4 9 Received Heat Transfer 693 | . . . . 30 252 411 Siege Activations . | . . . . . . . Robots Corrupted . | . . . . . . . Combat Hostiles . | . . . . . . . Parts Fried . | . . . . . . . Impact Corruptions . | . . . . . . . Robots Melted . | . . . . . . . Combat Hostiles . | . . . . . . . Parts Melted 1 | . . . . 1 . . Heat Transferred 483 | 148 . 111 . 74 . 150 Parts Sabotaged . | . . . . . . . Parts Stolen . | . . . . . . . Parts Stripped . | . . . . . . . Power Chain Reactions . | . . . . . . . Alert | -11 -10 -10 -10 -9 -8 -7 ------- Run | Yrd Mat Min Exi Min Mat Fac Peak Influence 219 | 5 18 76 . 55 174 219 Initial 79 | . 3 6 . . 17 79 Average 54 | . 3 69 . 26 60 71 Maximum Alert Level 1 | . . . . . . 1 Low Security (%) 99 | 100 100 100 . 100 100 98 Level 1 . | . . . . . . 1 Level 2 . | . . . . . . . Level 3 . | . . . . . . . Level 4 . | . . . . . . . Level 5 . | . . . . . . . High Security . | . . . . . . . Max Security . | . . . . . . . Squads Dispatched 6 | . . . . . 4 2 Investigation 3 | . . . . . 1 2 Extermination . | . . . . . . . Reinforcement 3 | . . . . . 3 . Assault . | . . . . . . . Garrison . | . . . . . . . Intercept . | . . . . . . . Searches Triggered . | . . . . . . . Construction Impeded . | . . . . . . . Haulers Reinforced . | . . . . . . . Active Scanning Responses . | . . . . . . . Cargo Convoy Interrupts . | . . . . . . . Stealth | -11 -10 -10 -10 -9 -8 -7 --------- Run | Yrd Mat Min Exi Min Mat Fac Distress Signals 1 | . . . . . 1 . Communications Jammed . | . . . . . . . Distress Signals . | . . . . . . . Times Spotted 36 | . 3 3 . 6 17 7 Peak Tracking Total 10 | . 3 3 . 6 10 6 Tactical Retreats 1 | . . . . . 1 . Traps | -11 -10 -10 -10 -9 -8 -7 ------- Run | Yrd Mat Min Exi Min Mat Fac Traps Triggered . | . . . . . . . Indirectly . | . . . . . . . Trap Hack Attempts . | . . . . . . . Triggered . | . . . . . . . Disarmed . | . . . . . . . Reprogrammed . | . . . . . . . Reused . | . . . . . . . Traps Extracted . | . . . . . . . Installed . | . . . . . . . Triggered . | . . . . . . . Machines | -11 -10 -10 -10 -9 -8 -7 ---------- Run | Yrd Mat Min Exi Min Mat Fac Machines Disabled 5 | . . . . . . 5 Max in Single Turn 5 | . . . . . . 5 Machines Repaired . | . . . . . . . Machines Dismantled . | . . . . . . . Machines Sabotaged . | . . . . . . . Overloaded Fab Kills . | . . . . . . . Hacking | -11 -10 -10 -10 -9 -8 -7 --------- Run | Yrd Mat Min Exi Min Mat Fac Machines Accessed 9 | . . . 5 . 2 2 Terminals 1 | . . . . . 1 . Fabricators . | . . . . . . . Repair Stations 1 | . . . . . . 1 Recycling Units 1 | . . . . . . 1 Scanalyzers 1 | . . . . . 1 . Garrison Access . | . . . . . . . Total Hacks 62 | . . . 50 . 6 6 Successful 57 | . . . 50 . 4 3 Failed 5 | . . . . . 2 3 Catastrophic 3 | . . . . . . 3 Database Lockouts . | . . . . . . . Manual 2 | . . . 2 . . . Terminals 4 | . . . . . 4 . Fabricators . | . . . . . . . Repair Stations 3 | . . . . . . 3 Recycling Units 3 | . . . . . . 3 Scanalyzers 2 | . . . . . 2 . Garrison Access . | . . . . . . . Terminal Hacks 52 | . . . 50 . 2 . Record 49 | . . . 49 . . . Alert Level 1 | . . . . . 1 . Surveillance Status 1 | . . . . . 1 . Derelict Proto ID Bank 1 | . . . 1 . . . Fabricator Hacks . | . . . . . . . Repair Station Hacks 1 | . . . . . . 1 Scan Component 1 | . . . . . . 1 Recycling Unit Hacks 2 | . . . . . . 2 Report Inventory 1 | . . . . . . 1 Retrieve Components 1 | . . . . . . 1 Scanalyzer 2 | . . . . . 2 . Insert Component 1 | . . . . . 1 . Analyze 1 | . . . . . 1 . Garrison Access Hacks . | . . . . . . . Unauthorized Hacks . | . . . . . . . Terminals . | . . . . . . . Fabricators . | . . . . . . . Repair Stations . | . . . . . . . Recycling Units . | . . . . . . . Scanalyzers . | . . . . . . . Garrison Access . | . . . . . . . Data Cores Recovered . | . . . . . . . Used . | . . . . . . . Hacking Detections 4 | . . . . . 2 2 Full Trace Events 3 | . . . . . 1 2 Feedback Events 1 | . . . . . . 1 Corruption 1 | . . . . . . 1 Feedback Blocked . | . . . . . . . Robot Schematics Acquired . | . . . . . . . Robots Built . | . . . . . . . Authchips . | . . . . . . . Time . | . . . . . . . Total Robot Build Rating . | . . . . . . . Part Schematics Acquired 1 | . . . . . 1 . Parts Built . | . . . . . . . Authchips . | . . . . . . . Time . | . . . . . . . Total Part Build Rating . | . . . . . . . Parts Repaired . | . . . . . . . Time . | . . . . . . . Parts Recycled . | . . . . . . . Recycled Matter . | . . . . . . . Retrieved Matter . | . . . . . . . Retrieved Components 2 | . . . . . . 2 Parts Scanalyzed 1 | . . . . . 1 . Part Schematics Acquired 1 | . . . . . 1 . Parts Damaged . | . . . . . . . Bothacking | -11 -10 -10 -10 -9 -8 -7 ------------ Run | Yrd Mat Min Exi Min Mat Fac Used RIF Installer . | . . . . . . . Robots Hacked 1 | . . . . . 1 . Non-combat . | . . . . . . . Combat 1 | . . . . . 1 . Robot Hacks Applied 1 | . . . . . 1 . parse_system 1 | . . . . . 1 . Relay Couplers Released . | . . . . . . . Fabnet Peak Effective % . | . . . . . . . Robots Rewired . | . . . . . . . Allies Hacked . | . . . . . . . Hacks Repelled . | . . . . . . . Allies | -11 -10 -10 -10 -9 -8 -7 -------- Run | Yrd Mat Min Exi Min Mat Fac Total Allies . | . . . . . . . Largest Group . | . . . . . . . Highest-Rated Group . | . . . . . . . Highest-Rated Ally . | . . . . . . . Total Orders . | . . . . . . . Ally Attacks . | . . . . . . . Total Damage . | . . . . . . . Kills . | . . . . . . . Allies Corrupted . | . . . . . . . Allies Melted . | . . . . . . . Intel | -11 -10 -10 -10 -9 -8 -7 ------- Run | Yrd Mat Min Exi Min Mat Fac Robot Analysis Total . | . . . . . . . Derelict Logs Recovered . | . . . . . . . Drone Launches . | . . . . . . . Drone Recoveries . | . . . . . . . Exploration | -11 -10 -10 -10 -9 -8 -7 ------------- Run | Yrd Mat Min Exi Min Mat Fac Turns Passed 1590 | 71 28 98 798 92 195 308 Spaces Moved 1692 | 52 32 89 879 113 202 325 Core 161 | 18 . . . . 76 67 Treads . | . . . . . . . Legs 23 | . . . . . 17 6 Wheels 1268 | 34 32 89 879 66 . 168 Hover . | . . . . . . . Flight 240 | . . . . 47 109 84 Fastest Speed 34 | 50 90 90 90 37 37 34 Average Speed 83 | 75 90 90 90 67 74 74 Slowest Speed 150 | 90 90 90 90 90 150 150 Overloaded Moves . | . . . . . . . Propulsion Burnouts . | . . . . . . . Robots Hopped 1 | . . . . . . 1 Cave-ins Triggered . | . . . . . . . Exploration Rate (%) 29 | 3 11 31 93 39 23 7 Regions Visited 6 Branch Regions 3 Pre-discovered Areas 1 | . . . 1 . . . Known Exits Taken . | . . . . . . . Unknown Exits Taken 6 | 1 1 1 1 1 1 . Scrap Searched . | . . . . . . . Spaces Dug . | . . . . . . . Terrain Destroyed 38 | . . . . . . 38 Melee . | . . . . . . . Projectile . | . . . . . . . AOE 38 | . . . . . . 38 Terrain Rammed . | . . . . . . . Walls Destroyed . | . . . . . . . Machines Disabled . | . . . . . . . Actions | -11 -10 -10 -10 -9 -8 -7 --------- Run | Yrd Mat Min Exi Min Mat Fac Total 1834 | 73 31 95 886 125 239 385 Wait 24 | . . . . . . 24 Move 1684 | 51 31 88 878 112 201 323 Hop 1 | . . . . . . 1 Pick Up 35 | 9 . 1 4 2 9 10 Fast Attach . | . . . . . . . Attach 36 | 6 . . 2 2 12 14 Detach 7 | . . . . 2 1 4 Swap . | . . . . . . . Drop 12 | 1 . . 2 4 2 3 Fire 24 | 6 . 6 . 3 8 1 Melee 7 | . . . . . 2 5 Ram 4 | . . . . . 4 . Kick . | . . . . . . . Crush . | . . . . . . . Escape Stasis . | . . . . . . . Rewire . | . . . . . . . Trap . | . . . . . . . Miscellaneous . | . . . . . . . Route ------- -11/Scrapyard -10/Materials -10/Mines -10/Exiles -9/Mines -8/Materials -7/Factory History --------- Turn | Location | Event 9 | -11/Scrapyard | Discovered new exit (range 16) 72 | -11/Scrapyard | Entered Materials 96 | -10/Materials | Discovered new exit (range 6) 100 | -10/Materials | Entered Mines 191 | -10/Mines | Deemed a non-threat by the Exiles lab entrance 192 | -10/Mines | Discovered new exit (range 5) 198 | -10/Mines | Entered Exiles 234 | -10/Exiles | Met 8R-AWN 257 | -10/Exiles | Met EX-HEX 318 | -10/Exiles | Met EX-DEC 319 | -10/Exiles | Build established: Mutant 344 | -10/Exiles | Visited The Gauntlet 489 | -10/Exiles | Learned location of Zion (-7) 536 | -10/Exiles | Discovered new exit (range 14) 623 | -10/Exiles | Met EX-BIN 740 | -10/Exiles | Aligned with FarCom system 741 | -10/Exiles | Given EX-Vault access code 826 | -10/Exiles | Opened EX-Vault 832 | -10/Exiles | Found Prototype Device 833 | -10/Exiles | Identified Cloak of Protection 866 | -10/Exiles | Warned to stay clear of 0b10 Research branches 996 | -10/Exiles | Left Exiles lab with Cloak of Protection 996 | -10/Exiles | Entered Mines 1086 | -9/Mines | Discovered new exit (range 6) 1088 | -9/Mines | Entered Materials 1088 | -8/Materials | Evolved 4 slots: Power x1, Propulsion x2, Utility x1 1238 | -8/Materials | Core integrity fell below 50% 1272 | -8/Materials | Lost 7 parts (3p3n1w) 1275 | -8/Materials | Discovered new exit (range 16) 1279 | -8/Materials | Core integrity fell below 20% 1283 | -8/Materials | Entered Factory 1283 | -7/Factory | Evolved 2 slots: Power x1, Propulsion x1 1550 | -7/Factory | Core integrity fell below 50% 1558 | -7/Factory | Lost 5 parts (1p1n2u1w) 1586 | -7/Factory | Core integrity fell below 20% 1591 | -7/Factory | Destroyed by Y-54 Guardian with Gatling Laser Last Messages --------------- Time: 14 ALERT: Suspicious activity at Repair Station F006. Dispatching Investigation squad. Dropped Broken Xenon Bombardment Thruster. Acquired Hvy. Rocket Launcher. S-27 Virus destroyed. Fusion Modulator explodes. S-27 Virus destroyed. Fusion Modulator explodes. Xenon Bombardment Thruster destroyed. Destroyed Xenon Bombardment Thruster. Hvy. Rocket Launcher destroyed. Destroyed Hvy. Rocket Launcher. Terminal disabled. Repair Station disabled. Backup Laser VII tumbles out of repair station. Backup Power VII tumbles out of repair station. Backup Propulsion VII tumbles out of repair station. The unstable cave ceiling collapses. Map ----- +----------------------------------------------------+ | | | | | | | | | | | | | | | | | | | | | | | | | | | | | | | | | ?????????????#;; ;;;;####????????????????? | | ????????????##; [ * #????????????????? | | ????????????#; Y " #????????????????? | | ????????????#; "" #????????????????? | | #######?????# " #????????????????? | | #?????# # "" #????????????????? | | """ #?????# ! " #????????????????? | | """ ! #??????# #????????????????? | | """ ######## ;;#######???????????????? | | """ # " " " @/ #?????????????? | | # m g # / #?????????????? | | """ + #?? #?????????????? | | """ # g +???? #?????????????? | | """ # #?????? #?????????????? | | """ # =!! #????????#?????????????? | | # ! #??????????????????????? | | # ! """" #??????????????????????? | | #+##/## """" #??????????????????????? | | # !! """" #??????????????????????? | | # !!! """" #??????????????????????? | | # !! """" #??????????????????????? | | ############## """" #??????????????????????? | | ???? # """" #??????????????????????? | | ??????""""" # #??????????????????????? | | ??????""""" + """" #??????????????????????? | | ??????""""" # """" #??????????????????????? | | ??????""""" # """" +??????????????????????? | | ?????? # """" #??????????????????????? | | ?????"""""" # """" #??????????????????????? | | ?????"""""" # """" ###############????????? | | ??????""""" # """" #????????? | | ???????"""" # #????????? | | ????????? # #????????? | | ????????? # #????????? | +----------------------------------------------------+ Best States ------------- Heat Dissipation 34 Energy Generation 19 Energy Capacity 375 Matter Stores 267 Matter Capacity 300 Sight Range 16 Terrain Scan Density 10 Cloak Strength 5 Evasion (%) 63 Item Schematics ----------------- Fission Core | -8/Materials | Scanalyzed Robot Schematics ------------------ None Fabricated ------------ Nothing Alien Tech Used ----------------- None Achievements -------------- Librarian Tourist Challenges ------------ None Game ------ Seed StasisTransportDevice Manual? 0 Play Time 00:33:57 Cumulative 6.9 hours Start 2024.03.10 @ 02:08:32 End 2024.03.10 @ 02:42:50 Sessions 1 Manual Loads 0 Difficulty Rogue Special Mode None Game No. 16 Rogue 16 Adventurer 0 Explorer 0 Win Type - Total 0 Types 0/0/0/0/0/0/0/0/0 Lore% 10 Gallery% 13 Achievement% 9 Wizard Run 0 Options --------- Layout 1 ASCII 0 Keyboard 0 Movement Arrows Keybinds 0 Fullscreen 1 Font 16/Terminus Map View 25x20 Zoom Use 99% Tactical HUD 0 Map Filters NONE Filters NONE Steam 1 RUN: 2dbfa1c9-5765-4db2-9125-2408f0ba44d9